bitfinex/quotes_ETHUSD_20241019
["timestamp","ask_amount","ask_price","bid_price","bid_amount"]
[1729344522486,0.98901345,2638.8,2638.4,0.8271]
[1729344522655,3.41077,2638.7,2638.4,0.8271]
[1729344534191,4.39970345,2638.8,2638.4,0.8271]
[1729344534436,4.39970345,2638.8,2638.4,1.250937]
[1729344535329,3.41078,2638.7,2638.4,1.250937]
[1729344536096,0.98901345,2638.8,2638.5,0.8271]
[1729344536295,0.59318585,2638.8,2638.6,0.8271]
[1729344536533,0.59318585,2638.8,2638.7,0.423805]
[1729344538294,0.59318585,2638.8,2638.6,0.8271]
[1729344564898,0.59318585,2638.8,2638.6,4.23799]
[1729344570626,0.59318585,2638.8,2638.6,0.8271]
[1729344571983,0.59318585,2638.8,2638.6,4.23798]
[1729344582352,0.59318585,2638.8,2638.6,0.8271]
[1729344582553,0.59318585,2638.8,2638.6,4.23799]
[1729344584558,0.59318585,2638.8,2638.6,0.8271]
[1729344584857,0.59318585,2638.8,2638.6,4.23799]
[1729344597950,0.59318585,2638.8,2638.6,0.8271]
[1729344598258,0.59318585,2638.8,2638.4,3.41107]
[1729344601341,0.59318585,2638.8,2638.4,6.82212]
[1729344601777,0.59318585,2638.8,2638.4,3.41105]
[1729344601979,0.59318585,2638.8,2638.5,3.41102]
[1729344602642,0.59318585,2638.8,2638.4,3.41105]
[1729344602844,0.59318585,2638.8,2638.4,3.829925]
[1729344604868,0.59318585,2638.8,2638.4,7.241005]
[1729344605082,0.59318585,2638.8,2638.4,3.829925]
[1729344605986,0.59318585,2638.8,2638.5,3.41101]
[1729344606477,4.00389585,2638.8,2638.3,4.18898]
[1729344608241,4.00389585,2638.8,2638.1,0.8256]
[1729344608446,3.41122,2638.4,2637.9,0.8256]
[1729344608650,3.41097,2638.6,2638.0,0.16042249]
[1729344608863,6.82196,2638.6,2638.0,3.4116]
[1729344609188,4.00421685,2638.5,2638.0,4.26366592]
[1729344609786,4.00421685,2638.5,2638.0,4.26365592]
[1729344617616,3.41126,2638.4,2637.9,0.8256]
[1729344617818,4.00421685,2638.5,2637.9,0.8256]
[1729344617819,4.39977039,2638.5,2637.9,0.8256]
[1729344618020,3.41137,2638.3,2637.8,3.41186]
[1729344618222,3.41115,2638.4,2637.7,0.8256]
[1729344618489,3.41165,2638.1,2637.5,4.09849815]
[1729344618809,3.41165,2638.1,2637.6,3.41212]
[1729344620140,3.41165,2638.1,2637.7,3.41204]
[1729344622612,3.41165,2638.1,2637.5,4.09839815]
[1729344623004,3.41165,2638.1,2637.6,3.41219]
[1729344623224,3.41165,2638.1,2637.6,4.24580882]
[1729344628526,6.82326,2638.1,2637.6,4.24580882]
[1729344630816,3.41161,2638.1,2637.6,4.24580882]
[1729344631016,6.82324,2638.1,2637.6,4.24580882]
[1729344631471,3.41161,2638.1,2637.6,4.24580882]
[1729344631749,3.41161,2638.1,2637.7,0.4932017]
[1729344632257,3.41161,2638.1,2637.7,1.3254017]
[1729344632749,6.82324,2638.1,2637.7,1.3254017]
[1729344635249,3.41161,2638.1,2637.7,1.3254017]
[1729344636161,6.82327,2638.1,2637.7,1.3254017]
[1729344636317,3.41161,2638.1,2637.7,1.3254017]
[1729344636520,6.82327,2638.1,2637.7,1.3254017]
[1729344637368,3.41161,2638.1,2637.7,1.3254017]
[1729344637567,6.82326,2638.1,2637.7,1.3254017]
[1729344639368,3.41161,2638.1,2637.7,1.3254017]
[1729344639522,3.41168,2638.0,2637.7,1.3254017]
[1729344650349,6.82343,2638.0,2637.7,1.3254017]
[1729344650651,3.41141,2638.2,2637.3,0.8225]
[1729344650856,3.41141,2638.2,2637.1,3.41283]
[1729344650857,3.41213,2637.7,2637.4,0.16047788]
[1729344651054,3.41213,2637.7,2637.5,0.16047788]
[1729344651253,3.41213,2637.7,2637.2,3.41268]
[1729344651462,3.41213,2637.7,2637.3,0.16041692]
[1729344651679,3.41213,2637.7,2637.4,0.16041692]
[1729344651883,3.41213,2637.7,2637.2,4.177485]
[1729344652052,3.41213,2637.7,2637.3,0.16041275]
[1729344652285,3.41213,2637.7,2637.4,0.16041275]
[1729344652485,3.41213,2637.7,2637.2,4.177485]
[1729344652732,3.41213,2637.7,2637.3,0.4999985]
[1729344652881,3.41213,2637.7,2637.4,0.16038126]
[1729344653084,3.41213,2637.7,2637.3,0.4999985]
[1729344653299,3.41213,2637.7,2637.4,0.16037972]
[1729344653524,3.41213,2637.7,2637.2,0.764805]
[1729344653723,6.82427,2637.7,2637.3,0.16035454]
[1729344653928,3.41213,2637.7,2637.1,4.23529]
[1729344654132,3.41213,2637.7,2637.2,0.16035922]
[1729344654317,3.41213,2637.7,2637.3,0.16035922]
[1729344654517,3.41213,2637.7,2637.1,4.23529]
[1729344654830,3.41213,2637.7,2637.2,3.57303577]
[1729344655126,3.41213,2637.7,2637.3,0.16033577]
[1729344655336,3.41213,2637.7,2637.2,3.4127]
[1729344655639,3.41213,2637.7,2637.3,0.16031723]
[1729344655804,3.41213,2637.7,2637.2,3.4127]
[1729344655999,3.41213,2637.7,2637.3,0.68662883]
[1729344656336,3.41213,2637.7,2637.3,0.52631069]
[1729344657589,3.41196,2637.8,2637.4,0.8225]
[1729344662530,7.21951296,2637.9,2637.4,4.23494]
[1729344662740,3.41195,2637.8,2637.5,0.47612507]
[1729344662945,3.41195,2637.8,2637.4,0.8225]
[1729344664098,3.41195,2637.8,2637.4,4.23493]
[1729344669318,4.00530404,2637.8,2637.4,4.23493]
[1729344672497,4.00530404,2637.8,2637.3,0.52631069]
[1729344672702,4.00530404,2637.8,2637.4,0.16030153]
[1729344673033,4.00530404,2637.8,2637.3,3.93888069]
[1729344673235,4.00530404,2637.8,2637.4,0.16030446]
[1729344673438,4.00530404,2637.8,2637.3,3.93888069]
[1729344673926,4.00530404,2637.8,2637.4,0.81633107]
[1729344674144,0.59335404,2637.8,2637.4,0.81633107]
[1729344674345,0.59335404,2637.8,2637.4,4.22877107]
[1729344678742,0.59335404,2637.8,2637.4,4.20748378]
[1729344679336,0.59335404,2637.8,2637.4,3.41244]
[1729344680349,0.59335404,2637.8,2637.5,0.1604423]
[1729344680535,0.59335404,2637.8,2637.4,3.41244]
[1729344680740,0.59335404,2637.8,2637.5,0.16044417]
[1729344680949,0.59335404,2637.8,2637.4,3.41244]
[1729344681143,0.59335404,2637.8,2637.5,0.16044425]
[1729344681326,0.59335404,2637.8,2637.4,4.176127]
[1729344681648,0.59335404,2637.8,2637.7,3.41206]
[1729344681854,0.59335404,2637.8,2637.7,3.57250389]
[1729344683718,0.59335404,2637.8,2637.7,3.57241387]
[1729344683962,0.59335404,2637.8,2637.7,3.85579318]
[1729344684121,0.59335404,2637.8,2637.7,4.80525158]
[1729344684555,0.59335404,2637.8,2637.7,1.39316496]
[1729344684713,0.59335404,2637.8,2637.7,0.94943178]
[1729344685056,0.59335404,2637.8,2637.7,0.7891]
[1729344691945,3.41156,2638.1,2637.7,0.7891]
[1729344692147,4.00485656,2638.1,2637.7,0.7891]
[1729344693444,0.59329656,2638.1,2637.7,0.7891]
[1729344693648,0.59329656,2638.1,2637.7,4.20114]
[1729344697695,6.82298,2638.2,2637.7,4.20114]
[1729344699665,3.41155,2638.1,2637.7,4.20114]
[1729344701797,3.41148,2638.2,2637.7,0.7891]
[1729344702086,3.41163,2638.1,2637.7,0.7891]
[1729344707706,4.00493853,2638.1,2637.7,0.7891]
[1729344711814,0.59330853,2638.1,2637.7,4.20115]
[1729344712025,0.59330853,2638.1,2637.9,0.8295]
[1729344713418,0.59330853,2638.1,2637.7,3.412]
[1729344715380,0.59330853,2638.1,2637.7,6.82398]
[1729344715823,0.59330853,2638.1,2637.8,3.41191]
[1729344722228,0.59330853,2638.1,2637.7,3.41198]
[1729344722418,0.59330853,2638.1,2637.7,6.82397]
[1729344723732,0.59330853,2638.1,2637.8,3.41192]
[1729344724592,0.59330853,2638.1,2637.7,3.41198]
[1729344725696,0.59330853,2638.1,2637.7,6.82397]
[1729344726101,0.59330853,2638.1,2637.7,6.82395]
[1729344726336,0.59330853,2638.1,2637.7,6.82396]
[1729344726536,0.59330853,2638.1,2637.7,3.41197]
[1729344729750,0.59330853,2638.1,2637.8,3.41191]
[1729344730314,0.59330853,2638.1,2637.7,3.41197]
[1729344730521,0.59330853,2638.1,2637.7,6.82396]
[1729344730949,0.59330853,2638.1,2637.7,3.41197]
[1729344731658,0.59330853,2638.1,2637.7,6.82394]
[1729344731953,0.59330853,2638.1,2637.7,6.82397]
[1729344732152,0.59330853,2638.1,2637.7,3.41197]
[1729344733760,0.59330853,2638.1,2637.7,6.82396]
[1729344734526,0.59330853,2638.1,2637.8,3.41191]
[1729344736827,0.59330853,2638.1,2637.9,3.41173]
[1729344737160,0.59330853,2638.1,2638.0,0.7519]
[1729344738969,0.59330853,2638.1,2638.0,4.16357]
[1729344739168,0.59330853,2638.1,2638.0,4.9286808]
[1729344744172,0.59330853,2638.1,2638.0,1.5170108]
[1729344744468,0.59330853,2638.1,2638.0,0.7519]
[1729344752122,0.59330853,2638.1,2638.0,4.2195775]
[1729344752939,0.59330853,2638.1,2638.0,4.3798835]
[1729344753138,0.59330853,2638.1,2638.0,4.2195775]
[1729344753337,0.59330853,2638.1,2638.0,4.37987544]
[1729344753528,0.59330853,2638.1,2638.0,4.2195775]
[1729344754622,0.59330853,2638.1,2638.0,4.37986351]
[1729344755023,3.41105,2638.5,2638.0,4.87385601]
[1729344755226,3.41105,2638.5,2638.0,4.71357]
[1729344755414,0.59320151,2638.4,2638.1,3.41154]
[1729344755724,0.59320151,2638.4,2638.2,0.8058]
[1729344755926,3.4111,2638.5,2638.0,1.3558]
[1729344756135,3.4111,2638.5,2638.1,0.55]
[1729344761002,3.4111,2638.5,2638.1,3.96154]
[1729344762037,3.4109,2638.6,2638.1,3.96154]
[1729344765872,3.4109,2638.6,2638.1,3.96154]
[1729344766869,3.4109,2638.6,2638.1,7.37302]
[1729344767029,3.4109,2638.6,2638.1,3.96148]
[1729344770630,3.4109,2638.6,2638.1,7.37294]
[1729344772438,3.4109,2638.6,2638.1,3.96146]
[1729344772649,3.4109,2638.6,2638.1,7.37292]
[1729344774285,3.4109,2638.6,2638.2,3.4114]
[1729344777749,3.4109,2638.6,2638.2,4.2196]
[1729344778590,3.4109,2638.6,2638.2,0.8082]
[1729344783688,0.3881771,2638.9,2637.8,0.79555565]
[1729344783866,3.41148,2638.2,2637.9,0.16039916]
[1729344784072,3.41148,2638.2,2637.8,0.8037]
[1729344785010,6.8225,2638.4,2637.8,4.2156]
[1729344785301,3.41124,2638.4,2637.8,0.8037]
[1729344785475,3.4114,2638.3,2637.8,0.8037]
[1729344786771,3.41143,2638.2,2637.8,0.8037]
[1729344793827,3.41161,2638.1,2637.8,0.8037]
[1729344794699,0.3881771,2638.9,2637.5,0.8037]
[1729344794700,3.41179,2638.0,2637.5,0.8037]
[1729344794881,3.41189,2637.9,2637.5,0.8037]
[1729344795314,3.41195,2637.8,2637.5,0.8037]
[1729344795517,3.41195,2637.8,2637.3,0.8037]
[1729344795518,3.41213,2637.7,2637.3,0.8037]
[1729344795802,3.80698236,2638.1,2637.3,4.21627]
[1729344795803,3.41193,2637.9,2637.3,4.21627]
[1729344796371,3.412,2637.8,2637.3,4.21627]
[1729344796981,6.82385,2637.9,2637.3,4.21619]
[1729344797203,6.82385,2637.9,2637.4,0.8037]
[1729344798490,6.82385,2637.9,2637.4,0.7348]
[1729344799389,3.41192,2637.9,2637.4,0.7348]
[1729344799587,3.41194,2637.8,2637.4,0.7348]
[1729344801276,3.41174,2638.0,2637.4,0.0758262]
[1729344801488,3.80696236,2638.1,2637.5,0.8066]
[1729344801692,3.41137,2638.3,2637.7,0.8066]
[1729344801908,6.82277,2638.3,2637.8,0.8066]
[1729344802209,3.41137,2638.3,2637.8,0.8066]
[1729344802410,3.4112,2638.4,2637.9,0.8066]
[1729344802645,3.41111,2638.5,2638.1,0.8066]
[1729344802826,3.41118,2638.4,2638.1,0.8066]
[1729344803296,6.8222,2638.5,2638.1,0.8066]
[1729344803496,3.41118,2638.4,2638.1,0.8066]
[1729344813969,6.82193,2638.6,2638.1,0.8066]
[1729344815184,3.41092,2638.6,2638.1,0.8066]
[1729344815335,3.41105,2638.5,2638.1,0.8066]
[1729344816676,4.00427449,2638.5,2638.1,0.8066]
[1729344821287,0.59322449,2638.5,2638.1,0.8066]
[1729344821526,0.59322449,2638.5,2638.2,0.8066]
[1729344821825,4.00426449,2638.5,2638.2,0.8066]
[1729344823599,0.59322449,2638.5,2638.2,0.8066]
[1729344823810,3.41116,2638.4,2638.2,0.8066]
[1729344826536,3.41128,2638.3,2638.2,0.8066]
[1729344833544,3.41116,2638.4,2638.2,0.8066]
[1729344840362,3.41118,2638.4,2638.2,0.8066]
[1729344840676,0.59322449,2638.5,2638.2,0.8066]
[1729344840840,0.59322449,2638.5,2638.2,4.21793]
[1729344841040,0.59322449,2638.5,2638.3,0.7868]
[1729344853471,0.59322449,2638.5,2638.3,0.7583]
[1729344853879,4.00425449,2638.5,2638.3,0.7583]
[1729344854179,0.59322449,2638.5,2638.3,0.7583]
[1729344868989,0.59322449,2638.5,2638.3,1.18285035]
[1729344869191,0.59322449,2638.5,2638.3,4.59413035]
[1729344869508,0.59322449,2638.5,2638.3,1.18285035]
[1729344872346,0.59322449,2638.5,2638.3,0.7583]
[1729344884614,0.59322449,2638.5,2638.3,4.16957]
[1729344885252,3.41066,2638.8,2638.3,4.16957]
[1729344886675,4.00374258,2638.9,2638.3,0.7583]
[1729344886959,3.41077,2638.7,2638.3,0.7583]
[1729344897384,6.8216,2638.7,2638.3,0.7583]
[1729344897590,3.41077,2638.7,2638.3,0.7583]
[1729344897792,3.41125,2638.4,2638.1,0.75]
[1729344897952,3.41125,2638.4,2637.9,0.75]
[1729344898151,3.41155,2638.1,2637.9,0.75]
[1729344898449,3.41155,2638.1,2637.7,0.75]
[1729344898651,3.41155,2638.1,2637.8,0.16037479]
[1729344898856,6.82294,2638.2,2637.7,0.75]
[1729344899080,3.41142,2638.2,2637.8,0.16035749]
[1729344899281,6.82294,2638.2,2637.7,0.75]
[1729344899487,3.41155,2638.1,2637.7,0.75]
[1729344900708,3.41142,2638.2,2637.7,0.75]
[1729344901000,3.41168,2638.0,2637.6,0.55]
[1729344901656,3.41168,2638.0,2637.6,3.96218]
[1729344901861,7.21852197,2638.2,2637.6,3.96218]
[1729344902258,3.41157,2638.1,2637.6,3.96218]
[1729344902459,0.39556197,2638.2,2637.5,0.8174]
[1729344902659,3.41193,2637.8,2637.5,0.8174]
[1729344907570,6.8235,2638.0,2637.5,0.8174]
[1729344907774,3.4117,2638.0,2637.5,0.8174]
[1729344907971,3.4118,2637.9,2637.5,0.8174]
[1729344910688,6.82345,2638.0,2637.5,0.8174]
[1729344910891,3.41188,2637.9,2637.5,0.8174]
[1729344928143,3.4117,2638.0,2637.5,4.22971]
[1729344928307,3.4117,2638.0,2637.5,0.8174]
[1729344928507,6.82349,2638.0,2637.5,0.8174]
[1729344929139,6.82349,2638.0,2637.6,0.16037482]
[1729344929321,3.41182,2637.9,2637.5,0.8174]
[1729344929522,3.41182,2637.9,2637.6,0.16037523]
[1729344929736,3.41182,2637.9,2637.5,0.8174]
[1729344929915,3.41182,2637.9,2637.6,0.16037506]
[1729344930261,3.4117,2638.0,2637.5,0.8174]
[1729344930409,3.4118,2637.9,2637.5,0.8174]
[1729344933748,3.41198,2637.8,2637.5,0.8174]
[1729344933947,3.4118,2637.9,2637.5,0.8174]
[1729344934253,6.8237,2637.9,2637.5,0.8174]
[1729344934438,3.41195,2637.8,2637.5,0.8174]
[1729344938528,6.82368,2637.9,2637.5,0.8174]
[1729344939148,3.41199,2637.8,2637.5,0.8174]
[1729344945722,4.00532807,2637.8,2637.5,0.8174]
[1729344953566,7.41735807,2637.8,2637.5,0.8174]
[1729344953777,3.41206,2637.7,2637.5,0.8174]
[1729344955192,4.00532807,2637.8,2637.5,0.8174]
[1729344955389,7.41735807,2637.8,2637.5,0.8174]
[1729344955561,4.00532807,2637.8,2637.5,0.8174]
[1729344955772,0.59333807,2637.8,2637.5,3.41231]
[1729344955958,0.59333807,2637.8,2637.6,1.168131]
[1729344956157,0.59333807,2637.8,2637.6,0.8269]
[1729344961497,4.00527807,2637.8,2637.6,0.8269]
[1729344961657,0.59333807,2637.8,2637.6,0.8269]
[1729344963882,3.41229,2637.6,2637.4,0.7606]
[1729344964085,3.41229,2637.6,2637.1,0.79555565]
[1729344964343,3.4124,2637.5,2637.2,0.92104888]
[1729344964544,3.4124,2637.5,2637.3,0.16044888]
[1729344964838,3.4124,2637.5,2637.2,0.7606]
[1729344965017,3.4124,2637.5,2637.3,0.16043304]
[1729344965225,3.4124,2637.5,2637.2,0.7606]
[1729344965400,3.41229,2637.6,2637.3,0.16043161]
[1729344965599,3.41229,2637.6,2637.2,0.7606]
[1729344965801,3.41229,2637.6,2637.3,0.16041098]
[1729344966015,3.41229,2637.6,2637.2,0.7606]
[1729344966340,3.41242,2637.5,2637.3,0.16040815]
[1729344966643,3.41242,2637.5,2637.2,0.7606]
[1729344966844,3.41242,2637.5,2637.3,0.16040917]
[1729344967133,3.41242,2637.5,2637.2,0.7606]
[1729344967328,3.41242,2637.5,2637.3,0.16041062]
[1729344967534,3.41242,2637.5,2637.2,0.7606]
[1729344967828,3.41242,2637.5,2637.3,0.16040739]
[1729344968044,3.41242,2637.5,2637.2,0.7606]
[1729344968239,3.41242,2637.5,2637.3,0.16038502]
[1729344968545,6.8246,2637.6,2637.2,0.7606]
[1729344968702,6.8246,2637.6,2637.3,0.16036567]
[1729344968904,6.8246,2637.6,2637.2,0.7606]
[1729344969233,3.41229,2637.6,2637.3,0.16036437]
[1729344969446,3.41232,2637.5,2637.2,0.7606]
[1729344970569,3.41229,2637.6,2637.2,0.7606]
[1729344970765,3.41229,2637.6,2637.3,0.16033952]
[1729344970970,3.41229,2637.6,2637.2,0.7606]
[1729344971263,6.82458,2637.6,2637.2,0.7606]
[1729344971877,3.41237,2637.5,2637.3,0.16033103]
[1729344972070,3.41237,2637.5,2637.2,0.7606]
[1729344972908,3.41229,2637.6,2637.2,0.7606]
[1729344975113,4.00533807,2637.8,2637.2,0.7606]
[1729344975114,3.41246,2637.4,2637.2,0.7606]
[1729344976007,3.41246,2637.4,2637.1,0.79555565]
[1729344976881,3.41266,2637.3,2637.1,0.79555565]
[1729344977684,3.41271,2637.2,2637.1,0.79555565]
[1729344978397,3.41271,2637.2,2636.9,1.19333348]
[1729344978907,3.401985,2637.1,2636.9,1.19333348]
[1729344980123,3.401985,2637.1,2636.8,0.7606]
[1729344981374,3.401985,2637.1,2636.6,1.62139721]
[1729344981574,3.401985,2637.1,2636.7,0.16015606]
[1729344981575,3.41301,2637.0,2636.7,0.16015606]
[1729344981815,3.41301,2637.0,2636.6,1.62139721]
[1729344982476,6.82533,2637.3,2636.7,0.8262]
[1729344982789,3.41266,2637.3,2636.7,7.65276]
[1729344983189,3.41266,2637.3,2636.8,3.41322]
[1729344984428,3.41266,2637.3,2636.7,7.65274]
[1729344984622,3.41248,2637.4,2637.0,0.8262]
[1729344985674,0.59333807,2637.8,2637.0,0.8262]
[1729344985873,3.41226,2637.6,2637.0,4.2391]
[1729344986403,3.41232,2637.5,2637.0,4.2391]
[1729344986614,6.82473,2637.5,2637.0,0.8262]
[1729344986932,3.4125,2637.4,2637.0,0.8262]
[1729344987082,3.41232,2637.5,2637.0,1.33460837]
[1729344988711,3.41271,2637.2,2636.7,0.8262]
[1729344989714,3.41293,2637.1,2636.7,0.8262]
[1729344989871,3.41271,2637.2,2636.7,0.8262]
[1729344990076,3.41292,2637.1,2636.7,0.8262]
[1729344990414,3.41271,2637.2,2636.8,0.8238]
[1729344992917,3.41253,2637.4,2636.8,3.41315]
[1729344993103,3.41253,2637.4,2636.9,0.8238]
[1729344996505,6.82507,2637.4,2636.9,0.8238]
[1729344997656,3.41258,2637.3,2636.9,0.8238]
[1729344997943,3.41258,2637.3,2637.0,0.478701]
[1729345000765,3.41233,2637.5,2637.1,0.7909]
[1729345006024,4.00575213,2637.5,2637.1,0.7909]
[1729345008805,3.41251,2637.4,2637.1,0.7909]
[1729345009008,3.41251,2637.4,2637.1,1.2591641]
[1729345011049,3.41251,2637.4,2637.1,0.7909]
[1729345020844,4.00574213,2637.5,2637.1,0.7909]
[1729345021069,4.00574213,2637.5,2637.1,4.20373]
[1729345021273,4.00574213,2637.5,2637.1,0.7909]
[1729345021486,4.00574213,2637.5,2637.1,1.33867482]
[1729345022681,4.00574213,2637.5,2637.2,0.8225]
[1729345023061,0.59342213,2637.5,2637.3,0.8225]
[1729345023274,0.59342213,2637.5,2637.3,4.23505]
[1729345023476,0.59342213,2637.5,2637.4,1.587274]
[1729345023688,0.59342213,2637.5,2637.4,0.8225]
[1729345038505,0.59342213,2637.5,2637.4,4.23495]
[1729345039789,3.41181,2637.9,2637.4,4.23495]
[1729345040423,0.59334425,2637.7,2637.4,4.23495]
[1729345041731,0.59334425,2637.7,2637.4,0.8225]
[1729345042218,0.59334425,2637.7,2637.4,4.23492]
[1729345043383,0.59334425,2637.7,2637.4,0.8225]
[1729345047191,0.59334425,2637.7,2637.4,4.23494]
[1729345047888,0.59334425,2637.7,2637.4,0.8225]
[1729345049940,4.00548425,2637.7,2637.4,0.8225]
[1729345052735,3.41219,2637.6,2637.4,0.8225]
[1729345055007,0.59334425,2637.7,2637.4,0.8225]
[1729345055215,4.00542425,2637.7,2637.4,0.8225]
[1729345056639,0.59334425,2637.7,2637.4,0.8225]
[1729345056937,3.41225,2637.6,2637.4,0.8225]
[1729345058352,3.41232,2637.5,2637.4,0.8225]
[1729345058629,3.41232,2637.5,2637.1,0.7851]
[1729345058856,3.41259,2637.3,2637.1,0.7851]
[1729345059562,3.41232,2637.5,2637.1,0.7851]
[1729345060067,6.82476,2637.5,2637.1,0.7851]
[1729345060243,3.41232,2637.5,2637.1,0.7851]
[1729345061259,6.82472,2637.5,2637.1,0.7851]
[1729345061465,3.41232,2637.5,2637.1,0.7851]
[1729345061665,3.41232,2637.5,2637.1,1.2049]
[1729345069882,3.41246,2637.4,2637.1,1.2049]
[1729345070041,3.41246,2637.4,2637.1,0.7851]
[1729345072282,3.41257,2637.4,2636.8,4.20833721]
[1729345072443,3.41271,2637.2,2636.9,0.9178772]
[1729345072643,3.41271,2637.2,2636.9,0.7571]
[1729345075661,6.82554,2637.2,2636.9,0.7571]
[1729345075956,3.41271,2637.2,2636.9,0.7571]
[1729345077156,3.41271,2637.2,2636.9,1.17703325]
[1729345080147,3.41271,2637.2,2636.9,0.7571]
[1729345083845,4.00542425,2637.7,2636.6,0.68204986]
[1729345083846,3.41306,2637.0,2636.6,1.45734986]
[1729345084073,3.41306,2637.0,2636.7,0.16072861]
[1729345084074,3.41309,2636.9,2636.7,0.16072861]
[1729345084384,3.41306,2637.0,2636.6,0.7753]
[1729345084587,3.41309,2636.9,2636.7,0.16072207]
[1729345084785,3.41309,2636.9,2636.6,0.7753]
[1729345084992,3.41309,2636.9,2636.7,0.16072145]
[1729345085166,3.41309,2636.9,2636.6,0.7753]
[1729345085366,0.39589811,2637.2,2636.4,0.79519721]
[1729345085367,3.34924373,2636.8,2636.4,0.79519721]
[1729345085571,3.41343,2636.7,2636.3,0.7753]
[1729345086053,3.41354,2636.6,2636.3,0.7753]
[1729345086394,3.41343,2636.7,2636.3,0.7753]
[1729345087466,6.82687,2636.7,2636.3,0.7753]
[1729345087785,3.41343,2636.7,2636.3,0.7753]
[1729345089093,6.82687,2636.7,2636.3,0.7753]
[1729345089271,3.41343,2636.7,2636.3,0.7753]
[1729345089471,3.41348,2636.6,2636.3,0.7753]
[1729345091600,3.4137,2636.5,2636.1,0.7753]
[1729345091962,6.82741,2636.5,2636.1,0.7753]
[1729345092298,3.4137,2636.5,2636.1,0.7753]
[1729345096717,3.4137,2636.5,2636.1,4.18941]
[1729345097202,3.4137,2636.5,2636.1,0.7753]
[1729345097405,3.4137,2636.5,2636.1,1.37576171]
[1729345099609,3.41343,2636.7,2636.1,1.37576171]
[1729345099909,3.41355,2636.6,2636.1,4.18942]
[1729345100496,0.59363077,2636.5,2636.1,4.18942]
[1729345105679,3.41396,2636.3,2636.1,0.7753]
[1729345106016,3.41382,2636.4,2636.1,0.7753]
[1729345106321,3.41394,2636.3,2635.9,0.7942]
[1729345106503,3.41382,2636.4,2635.9,0.7942]
[1729345106684,6.82765,2636.4,2635.9,0.7942]
[1729345107044,3.41382,2636.4,2635.9,0.7942]
[1729345107383,3.41397,2636.3,2635.9,0.7942]
[1729345107927,3.41402,2636.2,2635.9,0.7942]
[1729345109706,3.41402,2636.2,2635.7,0.7942]
[1729345110224,3.41421,2636.1,2635.7,0.7942]
[1729345110427,3.37150493,2636.1,2635.7,0.7942]
[1729345114840,2.82113228,2636.0,2635.7,0.7942]
[1729345115133,3.41432,2636.0,2635.5,0.7524]
[1729345115294,3.41432,2636.0,2635.5,4.1673]
[1729345120954,3.37150493,2636.1,2635.5,3.4149]
[1729345121156,3.41391,2636.3,2635.0,5.28873965]
[1729345121157,3.41391,2636.3,2635.7,4.19384]
[1729345121331,3.41391,2636.3,2635.9,0.7792]
[1729345121520,3.80982139,2636.3,2635.9,0.7792]
[1729345121952,0.39591139,2636.3,2635.9,0.7792]
[1729345122182,0.39591139,2636.3,2635.9,4.19352]
[1729345122774,0.39591139,2636.3,2635.9,7.60784]
[1729345122952,0.39591139,2636.3,2635.9,4.19352]
[1729345126373,0.39591139,2636.3,2635.9,4.954327]
[1729345126848,0.39591139,2636.3,2635.9,8.368637]
[1729345127049,0.39591139,2636.3,2636.0,4.19344]
[1729345128779,0.98926651,2636.5,2636.2,0.7792]
[1729345128991,0.59363077,2636.5,2636.2,1.198525]
[1729345134246,0.59363077,2636.5,2636.2,0.419325]
[1729345134461,0.59363077,2636.5,2636.3,0.7792]
[1729345153914,0.59363077,2636.5,2636.4,0.7862]
[1729345156747,0.59363077,2636.5,2636.4,0.78510152]
[1729345156949,0.59363077,2636.5,2636.4,1.20499167]
[1729345159052,0.59363077,2636.5,2636.4,0.78510152]
[1729345167820,0.59363077,2636.5,2636.4,4.35972241]
[1729345169723,0.59363077,2636.5,2636.4,4.43557684]
[1729345169890,0.59363077,2636.5,2636.4,4.35972241]
[1729345170274,0.59363077,2636.5,2636.4,4.3596866]
[1729345170794,0.59363077,2636.5,2636.4,5.21655098]
[1729345171014,3.82043705,2637.2,2636.7,0.8141]
[1729345171214,3.82043705,2637.2,2636.8,3.4132]
[1729345171215,3.82045705,2637.2,2636.8,3.4132]
[1729345171417,3.82045705,2637.2,2636.7,0.8141]
[1729345176427,3.82045705,2637.2,2636.7,4.22744]
[1729345187754,3.41296,2637.1,2636.7,0.8141]
[1729345188525,3.41304,2637.0,2636.5,0.8092]
[1729345188949,3.41304,2637.0,2636.5,4.22279]
[1729345195664,0.40772705,2637.2,2636.5,4.22279]
[1729345195834,3.82054705,2637.2,2636.6,3.41344]
[1729345196534,3.41282,2637.2,2636.7,3.41333]
[1729345196737,3.41282,2637.2,2636.8,0.8092]
[1729345198476,3.41282,2637.2,2636.5,3.41351]
[1729345198626,3.41311,2636.9,2636.3,7.6368]
[1729345198959,3.41311,2636.9,2636.4,0.16092342]
[1729345199160,3.41311,2636.9,2636.3,7.6368]
[1729345199367,3.41311,2636.9,2636.4,0.16092274]
[1729345199667,3.41311,2636.9,2636.3,7.6368]
[1729345199843,3.41311,2636.9,2636.4,0.16092352]
[1729345200027,3.41311,2636.9,2636.3,4.223]
[1729345200226,3.41311,2636.9,2636.4,0.1609306]
[1729345200474,3.41311,2636.9,2636.3,4.223]
[1729345200677,3.41322,2636.8,2636.3,4.223]
[1729345200960,3.41322,2636.8,2636.4,0.16093459]
[1729345201171,3.41322,2636.8,2636.3,4.986704]
[1729345201373,3.41322,2636.8,2636.4,0.16093391]
[1729345201684,3.41322,2636.8,2636.3,4.986704]
[1729345202133,3.41322,2636.8,2636.4,0.16091806]
[1729345202341,3.41322,2636.8,2636.3,4.223]
[1729345213379,3.41336,2636.7,2636.3,0.8092]
[1729345214058,3.41336,2636.7,2636.3,4.22306]
[1729345214259,3.41313,2636.9,2636.3,4.22298]
[1729345214554,3.41313,2636.9,2636.4,3.41368]
[1729345214866,3.41322,2636.8,2636.3,4.64812777]
[1729345215187,3.41322,2636.8,2636.3,8.06190777]
[1729345215482,3.41322,2636.8,2636.3,4.64812777]